[Event "Cracovia Chess Festival A 2021"]
[Site "Cracow"]
[Date "2022.01.04"]
[Round "9.23"]
[White "Luczak, Filip"]
[Black "Jaskolka, Tomasz"]
[Result "1-0"]
[ECO "A01"]
[WhiteElo "2273"]
[BlackElo "2193"]
[Annotator "ChessBase"]
[PlyCount "51"]
[EventDate "2021.12.27"]
[EventCountry "POL"]
[SourceTitle "playchess.com"]
[Source "ChessBase"]
[SourceQuality "1"]
[TimeControl "40/5400+30:1800+30"]

1. b3 {[%emt 0:10:38]} d5 {[%emt 0:05:13]} 2. Bb2 {[%emt 0:00:20]} Bf5 {[%emt 0:00:05]} 3. Nf3 {[%emt 0:00:29]} e6 {[%emt 0:00:05]} 4. e3 {[%emt 0:01:48]} Nd7 {[%emt 0:00:04]} 5. d4 {[%emt 0:03:51]} Ngf6 {[%emt 0:00:11]} 6. Bd3 {[%emt 0:01:32]} Bd6 {[%emt 0:01:07]} 7. Ne5 {[%emt 0:06:18]} c6 {[%emt 0:05:07]} 8. O-O {[%emt 0:10:38]} Qc7 {[%emt 0:05:07]} 9. f4 {[%emt 0:01:16]} h5 {[%emt 0:11:57]} 10. Nd2 {[%emt 0:06:41]} Ng4 {[%emt 0:13:57]} 11. Qe2 {[%emt 0:09:27]} Bxd3 {[%emt 0:04:10]} 12. cxd3 {[%emt 0:06:08]} Ndxe5 {[%emt 0:14:20]} 13. fxe5 {[%emt 0:02:54]} Bb4 {[%emt 0:00:05]} 14. a3 {[%emt 0:03:45]} Bxd2 {[%emt 0:04:06]} 15. Qxd2 {[%emt 0:00:03]} O-O-O {[%emt 0:04:54]} 16. a4 {[%emt 0:01:39]} Qe7 {[%emt 0:02:57]} 17. h3 {[%emt 0:06:20]} Nh6 {[%emt 0:01:11]} 18. Ba3 {[%emt 0:05:27]} Qg5 {[%emt 0:00:04]} 19. b4 {[%emt 0:05:39]} Nf5 {[%emt 0:00:32]} 20. Rf4 {[%emt 0:03:49]} f6 {[%emt 0:06:21]} 21. b5 {[%emt 0:00:57]} fxe5 {[%emt 0:00:04]} 22. dxe5 {[%emt 0:00:42]} d4 {[%emt 0:02:37]} 23. bxc6 {[%emt 0:02:13]} Nxe3 {[%emt 0:00:35]} 24. Rf7 {[%emt 0:02:38]} Qxe5 {[%emt 0:03:57]} 25. Qb4 {[%emt 0:00:51]} b6 {[%emt 0:02:35]} 26. Qe7 {[%emt 0:00:14]} 1-0

[Event "Cracovia Chess Festival A 2021"]
[Site "Cracow"]
[Date "2022.01.04"]
[Round "9.24"]
[White "Kyc, Jerzy"]
[Black "Stanisz, Patryk"]
[Result "1-0"]
[ECO "B34"]
[WhiteElo "2250"]
[BlackElo "2158"]
[Annotator "ChessBase"]
[PlyCount "63"]
[EventDate "2021.12.27"]
[EventCountry "POL"]
[SourceTitle "playchess.com"]
[Source "ChessBase"]
[SourceQuality "1"]
[TimeControl "40/5400+30:1800+30"]

1. e4 {[%emt 0:00:01]} c5 {[%emt 0:02:00]} 2. Nf3 {[%emt 0:00:54]} Nc6 {[%emt 0:00:09]} 3. d4 {[%emt 0:00:15]} cxd4 {[%emt 0:00:07]} 4. Nxd4 {[%emt 0:00:01]} Nf6 {[%emt 0:00:09]} 5. Nc3 {[%emt 0:00:06]} e5 {[%emt 0:00:11]} 6. Ndb5 {[%emt 0:00:06]} d6 {[%emt 0:00:11]} 7. Nd5 {[%emt 0:02:30]} Nxd5 {[%emt 0:00:08]} 8. exd5 {[%emt 0:00:02]} Nb8 {[%emt 0:03:53]} 9. c4 {[%emt 0:00:17]} a6 {[%emt 0:16:32]} 10. Nc3 {[%emt 0:00:16]} Be7 {[%emt 0:00:19]} 11. Be2 {[%emt 0:00:20]} O-O {[%emt 0:00:27]} 12. O-O {[%emt 0:01:22]} f5 {[%emt 0:02:10]} 13. f4 {[%emt 0:00:36]} exf4 {[%emt 0:01:14]} 14. Bxf4 {[%emt 0:01:33]} Nd7 {[%emt 0:10:29]} 15. Kh1 {[%emt 0:01:45]} g5 {[%emt 0:04:19]} 16. Be3 {[%emt 0:00:23]} g4 {[%emt 0:13:13]} 17. Qd2 {[%emt 0:02:27]} Nf6 {[%emt 0:04:41]} 18. Bd3 {[%emt 0:04:59]} Nh5 {[%emt 0:03:54]} 19. Bh6 {[%emt 0:11:13]} Rf7 {[%emt 0:02:44]} 20. Rae1 {[%emt 0:12:17]} Bd7 {[%emt 0:08:50]} 21. Re6 {[%emt 0:03:16]} f4 {[%emt 0:04:44]} 22. Qe2 {[%emt 0:04:08]} f3 {[%emt 0:04:56]} 23. gxf3 {[%emt 0:02:26]} Bxe6 {[%emt 0:00:29]} 24. dxe6 {[%emt 0:07:59]} Rf6 {[%emt 0:00:06]} 25. Bg5 {[%emt 0:08:55]} gxf3 {[%emt 0:11:37]} 26. Rxf3 {[%emt 0:05:21]} Qa5 {[%emt 0:05:24]} 27. Bxf6 {[%emt 0:01:06]} Nxf6 {[%emt 0:00:01]} 28. Nd5 {[%emt 0:02:00]} Nxd5 {[%emt 0:00:58]} 29. cxd5 {[%emt 0:00:37]} Rf8 {[%emt 0:00:33]} 30. Qe4 {[%emt 0:00:36]} Rxf3 {[%emt 0:00:30]} 31. Qxh7+ {[%emt 0:00:02]} Kf8 {[%emt 0:00:06]} 32. Qh8# {[%emt 0:00:01]} 1-0

[Event "Cracovia Chess Festival A 2021"]
[Site "Cracow"]
[Date "2022.01.04"]
[Round "9.25"]
[White "Maj, Pawel"]
[Black "Kopylov, Daniel"]
[Result "0-1"]
[ECO "A15"]
[WhiteElo "2145"]
[BlackElo "2317"]
[Annotator "ChessBase"]
[PlyCount "94"]
[EventDate "2021.12.27"]
[EventCountry "POL"]
[SourceTitle "playchess.com"]
[Source "ChessBase"]
[SourceQuality "1"]
[TimeControl "40/5400+30:1800+30"]

1. c4 {[%emt 0:00:02]} Nf6 {[%emt 0:00:29]} 2. g3 {[%emt 0:00:11]} c5 {[%emt 0:02:14]} 3. Bg2 {[%emt 0:00:11]} d5 {[%emt 0:07:57]} 4. cxd5 {[%emt 0:00:05]} Nxd5 {[%emt 0:00:08]} 5. Nc3 {[%emt 0:00:03]} Nxc3 {[%emt 0:00:38]} 6. bxc3 {[%emt 0:00:53]} Nc6 {[%emt 0:04:10]} 7. f4 {[%emt 0:02:58]} g6 {[%emt 0:02:18]} 8. Nf3 {[%emt 0:13:13]} Bg7 {[%emt 0:00:30]} 9. O-O {[%emt 0:00:08]} O-O {[%emt 0:00:24]} 10. Rb1 {[%emt 0:03:06]} Qc7 {[%emt 0:05:34]} 11. Qc2 {[%emt 0:00:43]} b6 {[%emt 0:01:50]} 12. d3 {[%emt 0:00:56]} Ba6 {[%emt 0:04:16]} 13. g4 {[%emt 0:15:13]} Rad8 {[%emt 0:02:05]} 14. f5 {[%emt 0:01:33]} Ne5 {[%emt 0:08:03]} 15. Bf4 {[%emt 0:02:34]} Nxf3+ {[%emt 0:14:17]} 16. Rxf3 {[%emt 0:00:07]} Be5 {[%emt 0:00:13]} 17. Rbf1 {[%emt 0:00:40]} Bb7 {[%emt 0:04:44]} 18. e4 {[%emt 0:02:01]} Bxf4 {[%emt 0:02:45]} 19. Rxf4 {[%emt 0:00:10]} g5 {[%emt 0:00:37]} 20. R4f3 {[%emt 0:01:23]} f6 {[%emt 0:01:35]} 21. R1f2 {[%emt 0:08:41]} Kg7 {[%emt 0:01:19]} 22. Bf1 {[%emt 0:01:00]} b5 {[%emt 0:01:06]} 23. h4 {[%emt 0:10:32]} h6 {[%emt 0:00:20]} 24. Rh3 {[%emt 0:00:23]} Rh8 {[%emt 0:02:08]} 25. Rfh2 {[%emt 0:00:30]} Bc6 {[%emt 0:05:08]} 26. hxg5 {[%emt 0:04:50]} hxg5 {[%emt 0:02:47]} 27. Qg2 {[%emt 0:01:06]} Qf4 {[%emt 0:02:41]} 28. Rh5 {[%emt 0:04:29]} Rxh5 {[%emt 0:02:34]} 29. Rxh5 {[%emt 0:00:11]} Rh8 {[%emt 0:00:40]} 30. Rxh8 {[%emt 0:01:25]} Kxh8 {[%emt 0:00:06]} 31. Qh2+ {[%emt 0:00:35]} Qxh2+ {[%emt 0:00:52]} 32. Kxh2 {[%emt 0:00:07]} b4 {[%emt 0:05:07]} 33. cxb4 {[%emt 0:05:34]} cxb4 {[%emt 0:00:04]} 34. Kg3 {[%emt 0:00:29]} a5 {[%emt 0:03:47]} 35. Kf3 {[%emt 0:01:00]} a4 {[%emt 0:04:13]} 36. d4 {[%emt 0:00:39]} a3 {[%emt 0:00:12]} 37. Bc4 {[%emt 0:05:07]} Ba4 {[%emt 0:02:24]} 38. Ke2 {[%emt 0:02:17]} Kg7 {[%emt 0:03:27]} 39. Kd2 {[%emt 0:00:39]} Kf8 {[%emt 0:00:44]} 40. Kc1 {[%emt 0:00:00]} Ke8 {[%emt 0:00:00]} 41. Bb3 {[%emt 0:02:56]} Bc6 {[%emt 0:01:43]} 42. d5 {[%emt 0:01:07]} Bb5 {[%emt 0:03:15]} 43. Kd2 {[%emt 0:00:04]} Kd7 {[%emt 0:00:11]} 44. Ke3 {[%emt 0:00:20]} Kd6 {[%emt 0:00:08]} 45. Kd4 {[%emt 0:00:15]} Be2 {[%emt 0:00:35]} 46. Bc2 {[%emt 0:00:07]} Bxg4 {[%emt 0:00:37]} 47. Kc4 {[%emt 0:00:09]} Be2+ {[%emt 0:00:15]} 0-1

[Event "Cracovia Chess Festival A 2021"]
[Site "Cracow"]
[Date "2022.01.04"]
[Round "9.26"]
[White "Malek, Daniel"]
[Black "Salna, Aleksandras"]
[Result "1/2-1/2"]
[ECO "B31"]
[WhiteElo "2376"]
[BlackElo "2227"]
[Annotator "ChessBase"]
[PlyCount "78"]
[EventDate "2021.12.27"]
[EventCountry "POL"]
[SourceTitle "playchess.com"]
[Source "ChessBase"]
[SourceQuality "1"]
[TimeControl "40/5400+30:1800+30"]

1. e4 {[%emt 0:00:03]} c5 {[%emt 0:06:01]} 2. Nf3 {[%emt 0:00:06]} Nc6 {[%emt 0:00:07]} 3. Bb5 {[%emt 0:00:05]} g6 {[%emt 0:00:11]} 4. O-O {[%emt 0:00:06]} Bg7 {[%emt 0:00:06]} 5. c3 {[%emt 0:00:05]} e5 {[%emt 0:00:22]} 6. d4 {[%emt 0:00:13]} cxd4 {[%emt 0:00:09]} 7. cxd4 {[%emt 0:00:05]} exd4 {[%emt 0:00:07]} 8. Bf4 {[%emt 0:00:17]} a6 {[%emt 0:00:06]} 9. Ba4 {[%emt 0:00:09]} Nge7 {[%emt 0:00:58]} 10. Bd6 {[%emt 0:00:27]} b5 {[%emt 0:00:23]} 11. Bb3 {[%emt 0:00:09]} Bb7 {[%emt 0:02:40]} 12. Ng5 {[%emt 0:00:27]} O-O {[%emt 0:01:56]} 13. Qf3 {[%emt 0:00:10]} Qe8 {[%emt 0:01:32]} 14. Qg3 {[%emt 0:00:18]} h6 {[%emt 0:05:37]} 15. Nf3 {[%emt 0:01:05]} Na5 {[%emt 0:00:50]} 16. Nbd2 {[%emt 0:01:38]} Nxb3 {[%emt 0:10:47]} 17. axb3 {[%emt 0:09:33]} Rc8 {[%emt 0:07:12]} 18. Rac1 {[%emt 0:03:10]} Rc6 {[%emt 0:00:38]} 19. b4 {[%emt 0:01:59]} Qd8 {[%emt 0:01:19]} 20. Rxc6 {[%emt 0:03:32]} Nxc6 {[%emt 0:07:01]} 21. Bxf8 {[%emt 0:03:59]} Qxf8 {[%emt 0:00:20]} 22. Qc7 {[%emt 0:09:56]} Qc8 {[%emt 0:00:35]} 23. Qf4 {[%emt 0:01:38]} Nxb4 {[%emt 0:03:40]} 24. e5 {[%emt 0:01:10]} Bxf3 {[%emt 0:01:34]} 25. Nxf3 {[%emt 0:00:20]} Nc6 {[%emt 0:00:10]} 26. h4 {[%emt 0:06:53]} Qf8 {[%emt 0:02:56]} 27. h5 {[%emt 0:09:00]} g5 {[%emt 0:02:11]} 28. Qe4 {[%emt 0:03:28]} Qc5 {[%emt 0:10:36]} 29. Re1 {[%emt 0:02:06]} a5 {[%emt 0:01:16]} 30. Rd1 {[%emt 0:19:54]} a4 {[%emt 0:15:26]} 31. Nxd4 {[%emt 0:13:09]} Nxd4 {[%emt 0:03:24]} 32. Qxd4 {[%emt 0:03:05]} Qxe5 {[%emt 0:00:08]} 33. Qxd7 {[%emt 0:00:23]} Qxb2 {[%emt 0:00:35]} 34. Qe8+ {[%emt 0:02:59]} Bf8 {[%emt 0:00:13]} 35. Rd8 {[%emt 0:00:27]} Qc1+ {[%emt 0:04:16]} 36. Kh2 {[%emt 0:00:07]} Qf4+ {[%emt 0:00:05]} 37. Kg1 {[%emt 0:00:05]} Qc1+ {[%emt 0:01:14]} 38. Kh2 {[%emt 0:00:06]} Qf4+ {[%emt 0:00:07]} 39. Kg1 {[%emt 0:00:06]} Qc1+ {[%emt 0:00:38]} 1/2-1/2

[Event "Cracovia Chess Festival A 2021"]
[Site "Cracow"]
[Date "2022.01.04"]
[Round "9.27"]
[White "Sinz, Bernhard"]
[Black "Krawczyk, Flawian"]
[Result "1/2-1/2"]
[ECO "A45"]
[WhiteElo "2330"]
[BlackElo "2114"]
[Annotator "ChessBase"]
[PlyCount "57"]
[EventDate "2021.12.27"]
[EventCountry "POL"]
[SourceTitle "playchess.com"]
[Source "ChessBase"]
[SourceQuality "1"]
[TimeControl "40/5400+30:1800+30"]

1. d4 {[%emt 0:02:39]} Nf6 {[%emt 0:00:07]} 2. Bg5 {[%emt 0:00:20]} d5 {[%emt 0:00:07]} 3. e3 {[%emt 0:00:25]} g6 {[%emt 0:01:17]} 4. Bxf6 {[%emt 0:03:46]} exf6 {[%emt 0:00:06]} 5. Nd2 {[%emt 0:05:32]} Bg7 {[%emt 0:00:15]} 6. g3 {[%emt 0:04:52]} O-O {[%emt 0:00:11]} 7. Bg2 {[%emt 0:00:15]} f5 {[%emt 0:00:11]} 8. Ne2 {[%emt 0:01:59]} c6 {[%emt 0:00:11]} 9. O-O {[%emt 0:00:40]} Nd7 {[%emt 0:00:47]} 10. b3 {[%emt 0:06:54]} Nf6 {[%emt 0:00:20]} 11. c4 {[%emt 0:02:30]} Ne4 {[%emt 0:01:39]} 12. Rc1 {[%emt 0:01:55]} g5 {[%emt 0:02:54]} 13. cxd5 {[%emt 0:07:32]} cxd5 {[%emt 0:01:02]} 14. Qc2 {[%emt 0:07:56]} Bd7 {[%emt 0:12:12]} 15. Nxe4 {[%emt 0:06:46]} dxe4 {[%emt 0:00:33]} 16. Qc7 {[%emt 0:05:00]} Bb5 {[%emt 0:01:02]} 17. Rfe1 {[%emt 0:01:43]} Qxc7 {[%emt 0:01:24]} 18. Rxc7 {[%emt 0:00:02]} Rac8 {[%emt 0:00:51]} 19. Rxc8 {[%emt 0:02:51]} Rxc8 {[%emt 0:00:16]} 20. Rc1 {[%emt 0:00:04]} Rxc1+ {[%emt 0:00:10]} 21. Nxc1 {[%emt 0:00:02]} Bf8 {[%emt 0:00:09]} 22. Bf1 {[%emt 0:05:15]} Ba3 {[%emt 0:00:13]} 23. Bxb5 {[%emt 0:00:46]} Bxc1 {[%emt 0:00:05]} 24. Kf1 {[%emt 0:00:40]} Kg7 {[%emt 0:00:05]} 25. Bd7 {[%emt 0:02:25]} Kf6 {[%emt 0:00:44]} 26. Ke2 {[%emt 0:02:27]} g4 {[%emt 0:02:47]} 27. b4 {[%emt 0:03:26]} Ba3 {[%emt 0:00:07]} 28. b5 {[%emt 0:00:07]} b6 {[%emt 0:00:12]} 29. Bc8 {[%emt 0:00:30]} 1/2-1/2

[Event "Cracovia Chess Festival A 2021"]
[Site "Cracow"]
[Date "2022.01.04"]
[Round "9.28"]
[White "Musial, Tomasz"]
[Black "Redzisz, Michal"]
[Result "0-1"]
[ECO "E04"]
[WhiteElo "2111"]
[BlackElo "2261"]
[Annotator "ChessBase"]
[PlyCount "58"]
[EventDate "2021.12.27"]
[EventCountry "POL"]
[SourceTitle "playchess.com"]
[Source "ChessBase"]
[SourceQuality "1"]
[TimeControl "40/5400+30:1800+30"]

1. d4 {[%emt 0:00:02]} Nf6 {[%emt 0:05:11]} 2. c4 {[%emt 0:00:05]} e6 {[%emt 0:00:15]} 3. g3 {[%emt 0:00:16]} d5 {[%emt 0:00:08]} 4. Bg2 {[%emt 0:00:06]} dxc4 {[%emt 0:03:46]} 5. Nf3 {[%emt 0:00:29]} Bd7 {[%emt 0:00:02]} 6. Ne5 {[%emt 0:02:45]} Bc6 {[%emt 0:00:38]} 7. Nxc6 {[%emt 0:01:18]} Nxc6 {[%emt 0:00:50]} 8. e3 {[%emt 0:00:05]} Qd7 {[%emt 0:00:05]} 9. O-O {[%emt 0:02:11]} Rd8 {[%emt 0:00:02]} 10. Qe2 {[%emt 0:09:46]} e5 {[%emt 0:00:03]} 11. Qxc4 {[%emt 0:09:28]} exd4 {[%emt 0:00:29]} 12. exd4 {[%emt 0:00:28]} Nxd4 {[%emt 0:00:02]} 13. Rd1 {[%emt 0:23:04]} Be7 {[%emt 0:20:49]} 14. Nc3 {[%emt 0:01:26]} b5 {[%emt 0:08:17]} 15. Qf1 {[%emt 0:00:30]} c5 {[%emt 0:08:45]} 16. Be3 {[%emt 0:01:13]} O-O {[%emt 0:01:04]} 17. b4 {[%emt 0:04:33]} Qf5 {[%emt 0:02:16]} 18. Nxb5 {[%emt 0:12:34]} Nc2 {[%emt 0:04:02]} 19. Rxd8 {[%emt 0:06:23]} Rxd8 {[%emt 0:01:15]} 20. Nxa7 {[%emt 0:04:05]} Bf8 {[%emt 0:19:00]} 21. Rc1 {[%emt 0:09:10]} Nxe3 {[%emt 0:03:04]} 22. fxe3 {[%emt 0:00:05]} Qe6 {[%emt 0:05:14]} 23. Qe2 {[%emt 0:03:57]} cxb4 {[%emt 0:00:21]} 24. Bf3 {[%emt 0:02:42]} Re8 {[%emt 0:01:03]} 25. Nb5 {[%emt 0:01:35]} Qxe3+ {[%emt 0:03:19]} 26. Qxe3 {[%emt 0:00:05]} Rxe3 {[%emt 0:00:01]} 27. Nd4 {[%emt 0:02:22]} Rd3 {[%emt 0:00:23]} 28. Nc6 {[%emt 0:02:52]} Rxf3 {[%emt 0:00:11]} 29. Rc4 {[%emt 0:00:02]} Rc3 {[%emt 0:00:28]} 0-1

[Event "Cracovia Chess Festival A 2021"]
[Site "Cracow"]
[Date "2022.01.04"]
[Round "9.29"]
[White "Chyzy, Jakub"]
[Black "Mika, Tomasz"]
[Result "0-1"]
[ECO "B18"]
[WhiteElo "2260"]
[BlackElo "2183"]
[Annotator "ChessBase"]
[PlyCount "112"]
[EventDate "2021.12.27"]
[EventCountry "POL"]
[SourceTitle "playchess.com"]
[Source "ChessBase"]
[SourceQuality "1"]
[TimeControl "40/5400+30:1800+30"]

1. e4 {[%emt 0:00:01]} c6 {[%emt 0:00:07]} 2. d4 {[%emt 0:00:03]} d5 {[%emt 0:00:08]} 3. Nc3 {[%emt 0:00:04]} dxe4 {[%emt 0:00:09]} 4. Nxe4 {[%emt 0:00:04]} Bf5 {[%emt 0:00:09]} 5. Ng3 {[%emt 0:00:09]} Bg6 {[%emt 0:00:06]} 6. h4 {[%emt 0:00:07]} h6 {[%emt 0:00:04]} 7. f4 {[%emt 0:00:05]} e6 {[%emt 0:02:26]} 8. Nf3 {[%emt 0:00:08]} Nd7 {[%emt 0:03:46]} 9. h5 {[%emt 0:00:10]} Bh7 {[%emt 0:01:44]} 10. Bd3 {[%emt 0:00:01]} Bxd3 {[%emt 0:01:05]} 11. Qxd3 {[%emt 0:00:02]} Ne7 {[%emt 0:03:00]} 12. Bd2 {[%emt 0:01:37]} Qc7 {[%emt 0:02:51]} 13. O-O-O {[%emt 0:00:50]} O-O-O {[%emt 0:00:56]} 14. Qe2 {[%emt 0:07:11]} Nf6 {[%emt 0:06:34]} 15. Ne5 {[%emt 0:05:05]} Nf5 {[%emt 0:01:57]} 16. Nxf5 {[%emt 0:01:20]} exf5 {[%emt 0:00:02]} 17. Qd3 {[%emt 0:10:52]} Ne4 {[%emt 0:00:41]} 18. Qh3 {[%emt 0:00:55]} Nd6 {[%emt 0:18:43]} 19. Bb4 {[%emt 0:04:29]} Nb5 {[%emt 0:00:02]} 20. Qxf5+ {[%emt 0:01:40]} Kb8 {[%emt 0:00:09]} 21. Bxf8 {[%emt 0:12:23]} Rhxf8 {[%emt 0:00:02]} 22. c3 {[%emt 0:01:00]} Rd5 {[%emt 0:08:56]} 23. Qh3 {[%emt 0:20:10]} f6 {[%emt 0:05:04]} 24. Nd3 {[%emt 0:06:48]} Qa5 {[%emt 0:03:47]} 25. Kb1 {[%emt 0:05:43]} Rfd8 {[%emt 0:04:10]} 26. c4 {[%emt 0:03:52]} Rxd4 {[%emt 0:06:19]} 27. cxb5 {[%emt 0:00:11]} Qxb5 {[%emt 0:00:21]} 28. Nf2 {[%emt 0:00:24]} Rd2 {[%emt 0:02:56]} 29. Qc3 {[%emt 0:11:22]} Qe2 {[%emt 0:05:55]} 30. Kc1 {[%emt 0:01:32]} Rxd1+ {[%emt 0:01:49]} 31. Rxd1 {[%emt 0:00:10]} Rxd1+ {[%emt 0:00:21]} 32. Nxd1 {[%emt 0:00:01]} Qxh5 {[%emt 0:01:50]} 33. Qd4 {[%emt 0:01:36]} a6 {[%emt 0:02:14]} 34. Nc3 {[%emt 0:00:36]} Qh1+ {[%emt 0:00:32]} 35. Kc2 {[%emt 0:00:32]} Qxg2+ {[%emt 0:00:11]} 36. Kb3 {[%emt 0:00:02]} Qg4 {[%emt 0:04:00]} 37. a4 {[%emt 0:04:25]} h5 {[%emt 0:05:19]} 38. a5 {[%emt 0:00:34]} Qe6+ {[%emt 0:01:16]} 39. Ka3 {[%emt 0:01:20]} Kc7 {[%emt 0:02:29]} 40. Ne4 {[%emt 0:00:00]} h4 {[%emt 0:00:00]} 41. Qb4 {[%emt 0:08:07]} h3 {[%emt 0:23:04]} 42. Nc5 {[%emt 0:00:23]} Qe3+ {[%emt 0:01:41]} 43. Ka4 {[%emt 0:01:12]} Kd6 {[%emt 0:02:28]} 44. Nxb7+ {[%emt 0:18:19]} Ke6 {[%emt 0:00:51]} 45. Qf8 {[%emt 0:06:51]} Qxf4+ {[%emt 0:00:51]} 46. b4 {[%emt 0:00:16]} h2 {[%emt 0:01:47]} 47. Qc8+ {[%emt 0:00:41]} Kf7 {[%emt 0:01:17]} 48. Nd8+ {[%emt 0:00:27]} Kg6 {[%emt 0:01:06]} 49. Ne6 {[%emt 0:00:31]} Qe5 {[%emt 0:02:31]} 50. Qe8+ {[%emt 0:00:31]} Kf5 {[%emt 0:01:05]} 51. Nxg7+ {[%emt 0:00:13]} Kf4 {[%emt 0:01:00]} 52. Ne6+ {[%emt 0:00:22]} Ke3 {[%emt 0:00:26]} 53. Qxc6 {[%emt 0:00:24]} Qb5+ {[%emt 0:00:47]} 54. Qxb5 {[%emt 0:00:06]} axb5+ {[%emt 0:00:04]} 55. Kxb5 {[%emt 0:00:04]} h1=Q {[%emt 0:00:07]} 56. Kb6 {[%emt 0:00:53]} Qe4 {[%emt 0:01:05]} 0-1

[Event "Cracovia Chess Festival A 2021"]
[Site "Cracow"]
[Date "2022.01.04"]
[Round "9.30"]
[White "Piekielny, Pawel"]
[Black "Svendsen, Bertil"]
[Result "1-0"]
[ECO "B76"]
[WhiteElo "2104"]
[BlackElo "2251"]
[Annotator "ChessBase"]
[PlyCount "43"]
[EventDate "2021.12.27"]
[EventCountry "POL"]
[SourceTitle "playchess.com"]
[Source "ChessBase"]
[SourceQuality "1"]
[TimeControl "40/5400+30:1800+30"]

1. e4 {[%emt 0:00:02]} c5 {[%emt 0:00:11]} 2. Nf3 {[%emt 0:00:04]} d6 {[%emt 0:00:06]} 3. d4 {[%emt 0:00:05]} cxd4 {[%emt 0:00:06]} 4. Nxd4 {[%emt 0:00:05]} Nf6 {[%emt 0:00:09]} 5. Nc3 {[%emt 0:00:04]} g6 {[%emt 0:00:09]} 6. Be3 {[%emt 0:00:04]} Bg7 {[%emt 0:00:06]} 7. f3 {[%emt 0:00:05]} O-O {[%emt 0:00:12]} 8. Qd2 {[%emt 0:00:03]} Nc6 {[%emt 0:00:12]} 9. g4 {[%emt 0:00:04]} Be6 {[%emt 0:00:13]} 10. Nxe6 {[%emt 0:00:18]} fxe6 {[%emt 0:00:09]} 11. O-O-O {[%emt 0:00:20]} Ne5 {[%emt 0:01:59]} 12. Be2 {[%emt 0:00:06]} Qc8 {[%emt 0:01:34]} 13. h4 {[%emt 0:00:07]} Nfd7 {[%emt 0:00:20]} 14. h5 {[%emt 0:00:08]} Nc4 {[%emt 0:01:02]} 15. Bxc4 {[%emt 0:00:05]} Qxc4 {[%emt 0:00:07]} 16. hxg6 {[%emt 0:00:05]} hxg6 {[%emt 0:00:11]} 17. f4 {[%emt 0:00:04]} Rfd8 {[%emt 0:37:44]} 18. f5 {[%emt 0:17:23]} Kf7 {[%emt 0:14:12]} 19. fxg6+ {[%emt 0:10:05]} Kxg6 {[%emt 0:02:05]} 20. Bh6 {[%emt 0:02:45]} Bf6 {[%emt 0:04:34]} 21. Qh2 {[%emt 0:00:28]} Qc5 {[%emt 0:02:29]} 22. Rd5 1-0

[Event "Cracovia Chess Festival A 2021"]
[Site "Cracow"]
[Date "2022.01.04"]
[Round "9.31"]
[White "Raczynski, Krzysztof"]
[Black "Braeuning, Rudolf Wilhelm"]
[Result "0-1"]
[ECO "A02"]
[WhiteElo "2194"]
[BlackElo "2242"]
[Annotator "ChessBase"]
[PlyCount "94"]
[EventDate "2021.12.27"]
[EventCountry "POL"]
[SourceTitle "playchess.com"]
[Source "ChessBase"]
[SourceQuality "1"]
[TimeControl "40/5400+30:1800+30"]

1. f4 {[%emt 0:00:03]} g6 {[%emt 0:11:07]} 2. Nf3 {[%emt 0:00:05]} Bg7 {[%emt 0:00:32]} 3. g3 d5 {[%emt 0:00:30]} 4. Bg2 {[%emt 0:00:23]} Nh6 {[%emt 0:00:09]} 5. O-O {[%emt 0:00:11]} O-O {[%emt 0:00:04]} 6. e3 {[%emt 0:04:29]} c5 {[%emt 0:00:38]} 7. d3 {[%emt 0:00:42]} Nc6 {[%emt 0:01:12]} 8. c3 {[%emt 0:02:22]} d4 {[%emt 0:29:11]} 9. e4 {[%emt 0:04:35]} b6 {[%emt 0:05:25]} 10. h3 {[%emt 0:03:26]} f5 {[%emt 0:06:22]} 11. e5 {[%emt 0:02:17]} dxc3 {[%emt 0:04:21]} 12. bxc3 {[%emt 0:00:30]} e6 {[%emt 0:11:59]} 13. Na3 {[%emt 0:14:54]} Nf7 {[%emt 0:10:11]} 14. d4 {[%emt 0:05:20]} Ba6 {[%emt 0:01:30]} 15. Re1 {[%emt 0:03:35]} Rc8 {[%emt 0:07:15]} 16. Be3 {[%emt 0:08:51]} cxd4 {[%emt 0:04:58]} 17. Nxd4 {[%emt 0:01:24]} Nxd4 {[%emt 0:01:35]} 18. cxd4 {[%emt 0:00:18]} Qd7 {[%emt 0:01:18]} 19. d5 {[%emt 0:06:26]} Rfd8 {[%emt 0:00:25]} 20. Qb3 {[%emt 0:09:28]} exd5 {[%emt 0:00:30]} 21. Rad1 {[%emt 0:00:35]} Bb7 {[%emt 0:00:37]} 22. Nb5 {[%emt 0:00:44]} Ba8 {[%emt 0:00:36]} 23. Nd4 {[%emt 0:00:48]} Nh6 {[%emt 0:00:47]} 24. Rc1 {[%emt 0:02:43]} Kh8 {[%emt 0:00:04]} 25. Kh2 {[%emt 0:09:18]} Ng8 {[%emt 0:00:02]} 26. Rxc8 {[%emt 0:01:06]} Rxc8 {[%emt 0:00:08]} 27. Bc1 {[%emt 0:00:24]} Ne7 {[%emt 0:00:47]} 28. Ba3 {[%emt 0:00:19]} Nc6 {[%emt 0:00:36]} 29. e6 {[%emt 0:00:54]} Qe8 {[%emt 0:00:49]} 30. Nb5 {[%emt 0:00:49]} Na5 {[%emt 0:00:24]} 31. Qb1 {[%emt 0:07:19]} Nc4 {[%emt 0:00:10]} 32. Nd6 {[%emt 0:03:05]} Nxd6 {[%emt 0:00:18]} 33. Bxd6 {[%emt 0:00:02]} Kg8 {[%emt 0:01:17]} 34. e7 {[%emt 0:01:27]} Kf7 {[%emt 0:01:05]} 35. Qd3 {[%emt 0:01:24]} Qc6 {[%emt 0:00:28]} 36. Be5 {[%emt 0:02:35]} Bxe5 {[%emt 0:00:31]} 37. Rxe5 {[%emt 0:00:02]} Ke8 {[%emt 0:00:10]} 38. Rxd5 {[%emt 0:01:17]} Qc7 {[%emt 0:00:34]} 39. Qb5+ {[%emt 0:04:08]} Kxe7 {[%emt 0:00:16]} 40. Re5+ {[%emt 0:00:00]} Kf6 {[%emt 0:00:00]} 41. Bxa8 {[%emt 0:06:27]} Rxa8 {[%emt 0:01:59]} 42. Qd5 {[%emt 0:00:50]} Rf8 {[%emt 0:10:13]} 43. Qd4 {[%emt 0:03:32]} Kf7 {[%emt 0:02:17]} 44. Rd5 {[%emt 0:01:02]} Qc2+ {[%emt 0:01:43]} 45. Kg1 {[%emt 0:01:01]} Rc8 {[%emt 0:01:12]} 46. Qd2 {[%emt 0:05:57]} Qb1+ {[%emt 0:01:23]} 47. Kf2 {[%emt 0:01:57]} Rc2 {[%emt 0:00:23]} 0-1